Cogmind - Beta 16.1 @@@ ROGUE MODE // 2026.03.30 @ 07:39:39 Player: Vitim Result: Destroyed by G0-8CM(R) with Subdweller Machine Gun Performance ------------- Evolutions (0) 0 Regions Visited (2) 400 Robots Destroyed (13) 65 Value Destroyed (289) 289 Prototype IDs (0) 0 Alien Tech Used (0) 0 Bonus (0) 0 TOTAL SCORE: 754 Bonus ------- None Cogmind --------- Core Integrity 0/250 Matter 233/300 Energy 31/100 System Corruption 0% Temperature Cool (0) Movement Core (50) Location -10/Subcaves Parts ------- > --- POWER (1) -------- (None) > --- PROPULSION (2) --- (None) > --- UTILITY (2) ------ Structural Scanner > --- WEAPON (2) ------- Flamer > --- INVENTORY (5) ---- Medium Storage Unit Datajack Scrap Shield Fragment (41) Peak State ------------ > --- POWER ------------ Light Ion Engine > --- PROPULSION ------- Light Treads Light Treads > --- UTILITY ---------- Improved Terrain Scanner Seismic Detector > --- WEAPON ----------- Autogun Autogun > --- INVENTORY -------- Medium Storage Unit EM Pulse Gun Datajack Mining Laser Mining Laser [Rating: 11] Favorites ----------- Power Light Ion Engine Engine Light Ion Engine Propulsion Light Treads Treads Light Treads Utility Seismic Detector Device Seismic Detector Storage Small Storage Unit Weapon Mining Laser Energy Gun EM Pulse Gun Ballistic Gun Autogun Special Weapon Mining Laser Build | -11 -10 -10 ------- Run | Yrd Mat Sub Slots Evolved . | . . . Power . | . . . Propulsion . | . . . Utility . | . . . Weapon . | . . . Parts Attached 14 | 10 3 1 Power 1 | 1 . . Engine 1 | 1 . . Core . | . . . Reactor . | . . . Propulsion 2 | 2 . . Treads 2 | 2 . . Leg . | . . . Wheel . | . . . Hover . | . . . Flight . | . . . Utility 4 | 3 1 . Device 3 | 2 1 . Storage 1 | 1 . . Processor . | . . . Hackware . | . . . Protection . | . . . Artifact . | . . . Weapon 7 | 4 2 1 Energy Gun 2 | 2 . . Energy Cannon . | . . . Ballistic Gun 2 | . 2 . Ballistic Cannon . | . . . Launcher . | . . . Special Weapon 3 | 2 . 1 Impact Weapon . | . . . Slashing Weapon . | . . . Piercing Weapon . | . . . Special Melee Weapon . | . . . Unidentified Prototypes . | . . . Parts Lost 9 | . 1 8 Power 1 | . . 1 Propulsion 2 | . . 2 Utility 1 | . . 1 Weapon 5 | . 1 4 Highest Loss Streak 5 | . 1 5 To Critical Strikes 1 | . . 1 Average Backups 3 | 2 4 3 Power . | . . . Propulsion . | . . . Utility . | . 1 1 Weapon 2 | 1 2 1 Tool/Special . | . . . Unused Backups 2 | . . 2 Power . | . . . Propulsion . | . . . Utility 1 | . . 1 Weapon . | . . . Tool/Special 1 | . . 1 Average Slot Usage (%) 85 | . 92 78 Engine 9 | . 14 4 Treads 23 | . 28 19 Device 27 | . 27 27 Ballistic Gun 16 | . 9 23 Special Weapon 7 | . 11 2 Peak Build Rating 11 | 9 11 9 Average Rating 7 | 8 7 7 On Entrance 5 | . 9 6 Avg Prop Armor Cover (%) . | . . . Naked Turns . | . . . Heaviest Build 12 | 12 11 11 Greatest Support 40 | 40 40 40 Greatest Overweight (x) . | . . . Average Overweight (x) . | . . . Largest Inventory Capacity 8 | 8 5 5 Average Capacity 5 | 5 5 5 Most Carried 5 | 4 5 5 Average Carried 3 | 2 4 4 Final Capacity 5 | 5 5 5 Final Carried 5 | 3 5 3 Class Distribution -------------------- 55% | Mutant 44% | Scavenger-Mutant Dominant Class ---------------- Mutant | -10/Materials Mutant | -10/Subcaves Resources | -11 -10 -10 ----------- Run | Yrd Mat Sub Matter Collected 474 | 300 64 110 Remotely . | . . . Salvage Created 370 | 182 87 101 Parts 29 | 19 9 1 Haulers Intercepted . | . . . Recyclers Shooed . | . . . Parts Field Recycled . | . . . Retrieved Matter . | . . . Parts Self-Destructed 10 | . . 10 Prevented . | . . . Parts Restored . | . . . Kills | -11 -10 -10 ------- Run | Yrd Mat Sub Combat Hostiles Destroyed 6 | . 3 3 Guns 4 | . 1 3 Cannons 2 | . 2 . Classes Destroyed 6 | 3 2 1 Worker 1 | 1 . . Builder 1 | . 1 . Tunneler 4 | 4 . . Recycler 1 | 1 . . Grunt 4 | . 3 1 Subdweller 2 | . . 2 Best Kill Streak 2 | 2 1 1 Combat Bots Only 1 | . 1 1 Max Kills in Single Turn 1 | 1 1 1 Gunslinging . | . . . Exploded . | . . . Melee . | . . . Uniques/NPCs Destroyed . | . . . Combat | -11 -10 -10 -------- Run | Yrd Mat Sub Hostile Shots Fired 76 | . 23 53 Missed 16 | . 1 15 Hits 60 | . 22 38 Projectile 60 | . 22 38 Critical Strikes 2 | . . 2 Damage Taken 1000 | . 241 759 Core 264 | . 64 200 Absorbed by Shields . | . . . Core Remaining (%) 100 | 100 . . Volleys Fired 97 | 37 16 44 Largest 2 | 2 2 2 Hottest 200 | 200 200 100 Shots Fired 116 | 42 23 51 Gun 82 | 32 6 44 Cannon . | . . . Launcher . | . . . Special 34 | 10 17 7 Kinetic 44 | . 6 38 Thermal 54 | 30 17 7 Explosive . | . . . Electromagnetic 18 | 12 . 6 Robot Hit Streak 13 | 7 6 13 Robot Miss Streak 4 | 3 4 3 Penetration Max . | . . . Secondary Targets . | . . . Shots Hit Robots 77 | 29 9 39 Core Hits 17 | 7 4 6 Critical Kills . | . . . Critical Parts Destroyed . | . . . Critical Strikes 1 | 1 . . Corrupt 1 | 1 . . Melee Attacks . | . . . Impact . | . . . Slashing . | . . . Piercing . | . . . Sneak Attacks . | . . . Combat Hostiles . | . . . Follow-up Attacks . | . . . Damage Inflicted 876 | 401 186 289 Guns 612 | 281 90 241 Cannons . | . . . Explosions . | . . . Melee . | . . . Ramming . | . . . Kinetic 331 | . 90 241 Thermal 423 | 279 96 48 Explosive . | . . . Electromagnetic 122 | 122 . . Impact . | . . . Slashing . | . . . Piercing . | . . . Highest Corruption . | . . . Average Corruption . | . . . Corruption Purged . | . . . Corruption Blocked . | . . . Overload Shots . | . . . Overflow Damage 8 | 8 . . Projectiles 8 | 8 . . Explosions . | . . . Melee . | . . . Knockbacks . | . . . Impact . | . . . Kinetic . | . . . Secondary . | . . . Self-Inflicted Damage . | . . . Shots . | . . . Rammed . | . . . Targets Rammed . | . . . Kicked . | . . . Crushed . | . . . Highest Temperature 156 | 112 156 . Average Temperature 55 | 45 60 . Received Heat Transfer 255 | . 132 123 Siege Activations . | . . . Martial Activations . | . . . Shielding Activations . | . . . Robots Disrupted . | . . . Combat Hostiles . | . . . Robots Corrupted . | . . . Combat Hostiles . | . . . Parts Fried . | . . . Impact Corruptions . | . . . Robots Melted . | . . . Combat Hostiles . | . . . Parts Melted . | . . . Heat Transferred 925 | 625 200 100 Parts Sabotaged . | . . . Parts Stolen . | . . . Parts Stripped . | . . . Power Chain Reactions . | . . . Alert | -11 -10 -10 ------- Run | Yrd Mat Sub Maximum Alert Level . | . . . Low Security (%) 100 | 100 100 . Level 1 . | . . . Level 2 . | . . . Level 3 . | . . . Level 4 . | . . . Level 5 . | . . . High Security . | . . . Max Security . | . . . Peak Influence 56 | 10 56 . Initial . | . . . Average 4 | . 8 . Influence Increases 195 | 30 135 30 Destroy 0b10 Robot/C 80 | . 60 20 Destroy 0b10 Robot/NC 35 | 30 5 . Destroy Leader 40 | . 30 10 Successful Hack 7 | . 7 . Disable Machine 30 | . 30 . Destroy Structure 3 | . 3 . Influence Decreases 195 | 30 135 30 Time Decay 191 | 30 131 30 Lost Part 4 | . 4 . Squads Dispatched 3 | . 3 . Investigation 2 | . 2 . Extermination . | . . . Reinforcement 1 | . 1 . Assault . | . . . Garrison . | . . . Intercept . | . . . Searches Triggered . | . . . Construction Impeded . | . . . Haulers Reinforced . | . . . Active Scanning Responses . | . . . Cargo Convoy Interrupts . | . . . Stealth | -11 -10 -10 --------- Run | Yrd Mat Sub Distress Signals 1 | . 1 . Communications Jammed . | . . . Distress Signals . | . . . Times Spotted 9 | . 5 4 Peak Tracking Total 2 | . 2 1 Tactical Retreats . | . . . Traps | -11 -10 -10 ------- Run | Yrd Mat Sub Traps Triggered 1 | . 1 . Indirectly . | . . . Trap Hack Attempts . | . . . Triggered . | . . . Disarmed . | . . . Reprogrammed . | . . . Reused . | . . . Traps Extracted . | . . . Installed . | . . . Triggered . | . . . Machines | -11 -10 -10 ---------- Run | Yrd Mat Sub Machines Disabled 2 | . 2 . Max in Single Turn 1 | . 1 . Machines Repaired . | . . . Machines Dismantled . | . . . Machines Sabotaged . | . . . Overloaded Fab Kills . | . . . Hacking | -11 -10 -10 --------- Run | Yrd Mat Sub Machines Accessed 1 | . 1 . Terminals 1 | . 1 . Fabricators . | . . . Repair Stations . | . . . Recycling Units . | . . . Scanalyzers . | . . . Garrison Access . | . . . Total Hacks 3 | . 3 . Successful 2 | . 2 . Failed 1 | . 1 . Catastrophic . | . . . Database Lockouts . | . . . Manual . | . . . Terminals 3 | . 3 . Fabricators . | . . . Repair Stations . | . . . Recycling Units . | . . . Scanalyzers . | . . . Garrison Access . | . . . Terminal Hacks 2 | . 2 . Record 2 | . 2 . Fabricator Hacks . | . . . Repair Station Hacks . | . . . Recycling Unit Hacks . | . . . Scanalyzer . | . . . Garrison Access Hacks . | . . . Unauthorized Hacks . | . . . Terminals . | . . . Fabricators . | . . . Repair Stations . | . . . Recycling Units . | . . . Scanalyzers . | . . . Garrison Access . | . . . Data Cores Recovered . | . . . Used . | . . . Hacking Detections 1 | . 1 . Full Trace Events 1 | . 1 . Feedback Events . | . . . Feedback Blocked . | . . . Robot Schematics Acquired . | . . . Robots Built . | . . . Authchips . | . . . Time . | . . . Total Robot Build Rating . | . . . Part Schematics Acquired . | . . . Parts Built . | . . . Authchips . | . . . Time . | . . . Total Part Build Rating . | . . . Part Studies Acquired . | . . . Parts Repaired . | . . . Time . | . . . Parts Recycled . | . . . Recycled Matter . | . . . Retrieved Matter . | . . . Retrieved Components . | . . . Parts Scanalyzed . | . . . Part Schematics Acquired . | . . . Parts Damaged . | . . . Bothacking | -11 -10 -10 ------------ Run | Yrd Mat Sub Used RIF Installer . | . . . Robots Hacked . | . . . Non-combat . | . . . Combat . | . . . Robot Hacks Applied . | . . . Relay Couplers Released . | . . . Fabnet Peak Effective % . | . . . Robots Rewired . | . . . Allies Hacked . | . . . Hacks Repelled . | . . . Allies | -11 -10 -10 -------- Run | Yrd Mat Sub Total Allies . | . . . Largest Group . | . . . Highest-Rated Group . | . . . Highest-Rated Ally . | . . . Total Orders . | . . . Ally Attacks . | . . . Total Damage . | . . . Kills . | . . . Allies Corrupted . | . . . Allies Melted . | . . . Intel | -11 -10 -10 ------- Run | Yrd Mat Sub Active Infowar (turns) 2010 | 710 684 616 Terrain 858 | 710 148 . Structural 1150 | . 534 616 Seismic 1885 | 603 684 598 Robot Analysis Total . | . . . Derelict Logs Recovered . | . . . Drone Launches . | . . . Drone Recoveries . | . . . Exploration | -11 -10 -10 ------------- Run | Yrd Mat Sub Turns Passed 2130 | 830 684 616 Spaces Moved 560 | 141 167 252 Core 1 | 1 . . Treads 559 | 140 167 252 Legs . | . . . Wheels . | . . . Hover . | . . . Flight . | . . . Fastest Speed 50 | 50 160 160 Average Speed 159 | 159 160 160 Slowest Speed 160 | 160 160 160 Overloaded Moves . | . . . Propulsion Burnouts . | . . . Robots Hopped . | . . . Potential Cave-ins . | . . . Cave-ins Triggered . | . . . Exploration Rate (%) 15 | 5 25 17 Regions Visited 2 Branch Regions 1 Pre-discovered Areas . | . . . Known Exits Taken . | . . . Unknown Exits Taken 2 | 1 1 . Scrap Searched . | . . . Spaces Dug 1 | . 1 . Terrain Destroyed 6 | 3 3 . Melee . | . . . Projectile 6 | 3 3 . AOE . | . . . Terrain Rammed . | . . . Walls Destroyed . | . . . Machines Disabled . | . . . Actions | -11 -10 -10 --------- Run | Yrd Mat Sub Total 1620 | 685 527 408 Wait 923 | 486 333 104 Move 558 | 140 166 252 Hop . | . . . Pick Up 16 | 10 4 2 Fast Attach 1 | . 1 . Attach 13 | 9 . 4 Detach 2 | 2 . . Swap 7 | 1 4 2 Drop 3 | . 3 . Fire 97 | 37 16 44 Melee . | . . . Ram . | . . . Kick . | . . . Crush . | . . . Escape Stasis . | . . . Rewire . | . . . Trap . | . . . Miscellaneous . | . . . Route ------- -11/Scrapyard -10/Materials -10/Subcaves (discovered 1 exit: [Rec]) History --------- Turn | Location | Event 25 | -11/Scrapyard | Discovered new exit (range 16) 831 | -11/Scrapyard | Entered Materials 832 | -10/Materials | Build established: Scavenger-Mutant 1127 | -10/Materials | Discovered new exit (range 11) 1458 | -10/Materials | Build established: Mutant 1515 | -10/Materials | Entered Subcaves 1516 | -10/Subcaves | Approached by a straggling Scientist 1728 | -10/Subcaves | Core integrity fell below 50% 1776 | -10/Subcaves | Lost 3 parts (1p1n1w) 1879 | -10/Subcaves | Discovered new exit (range 16) 2018 | -10/Subcaves | Shifting Twisted Machinery released Sub. Power Source 2041 | -10/Subcaves | Shifting Twisted Machinery released Sub. Laser 2088 | -10/Subcaves | Core integrity fell below 20% 2131 | -10/Subcaves | Destroyed by G0-8CM(R) with Subdweller Machine Gun Last Messages --------------- 01904_ Acquired 47 matter. 01907_ Acquired Flamer. 01916_ Subatomizers dissect the Disposable Heat Sink. 6K-FFL(c): "I think it's somewhere southeast of here" 01930_ Subatomizers dissect the Disposable Heat Sink. 6K-FFL(c): "I think it's somewhere southeast of here" 02003_ G-47 Trooper destroyed. 02009_ Acquired 54 matter. 02017_ Acquired 9 matter. Sub. Power Source falls loose from the Twisted Machinery. 6K-FFL(c): "I think it's somewhere southeast of here" Sub. Laser falls loose from the Twisted Machinery. 6K-FFL(c): "I think it's somewhere southeast of here" 02083_ Autogun destroyed. 02107_ Critical hit (Destroy). 02107_ Autogun destroyed. 02113_ Seismic Detector destroyed. 02121_ EM Pulse Gun destroyed. 6K-FFL(c): "I think it's somewhere east of here" 02127_ Lgt. Treads destroyed. Map ----- +----------------------------------------------------+ | ##????????? ###?????????????????????????????? | | ## ###?????????%*####???????????????????????????? | | #######?????????= ###???????????????????????????? | | #######""??????# ##???????????????????????????? | | ## ######?????### ##????????????????????????????? | | ##?????### ##????????????????????????????? | | ###??##### ##????????????????????????????? | | #######??##### ## ??? #???????????????????? | | ########### ## ##### ##???????????????????? | | ############ ## ### ###???????????????????? | | ####### #### ## ##????????????????????? | | # ###& "" ????????????????????? | | &##! #* ??????????????????????? | | ## # &% %"### #?????????????????????? | | ###### ####### ##*"### ###????????????????????? | | ################## ### ###????????????????????? | | ????######???##### ### ##### ???????????????? | | ?????????????#### " ### #######???????????????? | | ????????????#### " ## ## ##???????????????? | | ????????????### """#### ##???????????????? | | ????????????## " ### ##???????????????? | | ????????????## &%## ###???????????????? | | ????????????## !*= "###????????????????? | | ????????????## ####?????????????????? | | ????????????### c ###???????????????????? | | ????????????####### " @ ###???????????????????? | | ?????????????####### "R "##???????????????????? | | ?????????????????#### " ""###???????????????????? | | ??????????????????#### #""[###???????????????????? | | ???????????????????### "" ###???????????????????? | | ????????????????????# ""# ##???????????????????? | | ???????????????????? """"" ##??????????????????? | | ???????????????????""""""""""##??????????????????? | | ??????????????????""?? ###"""##??????????????????? | | ???????????????????????### ##??????????????????? | | ?????????????????????????????????????????????????? | | ?????????????????????????????????????????????????? | | ?????????????????????????????????????????????????? | | ?????????????????????????????????????????????????? | | ?????????????????????????????????????????????????? | | ?????????????????????????????????????????????????? | | ?????????????????????????????????????????????????? | | ?????????????????????????????????????????????????? | | ?????????????????????????????????????????????????? | | ?????????????????????????????????????????????????? | | ?????????????????????????????????????????????????? | | ?????????????????????????????????????????????????? | | ?????????????????????????????????????????????????? | | ?????????????????????????????????????????????????? | | ?????????????????????????????????????????????????? | +----------------------------------------------------+ Best States ------------- Heat Dissipation 25 Energy Generation 10 Energy Capacity 125 Matter Stores 300 Matter Capacity 300 Sight Range 16 Terrain Scan Range 16 Terrain Scan Density 10 Evasion (%) 40 Recoil Reduction 2 Item Schematics ----------------- None Robot Schematics ------------------ None Fabricated ------------ Nothing Repaired ---------- Nothing Studied --------- None Alien Tech Used ----------------- None Achievements -------------- None Challenges ------------ None Game ------ Seed GatlingAssembledRail Manual? 0 Play Time 00:14:29 Cumulative 2.6 hours Start 2026.03.30 @ 07:26:27 End 2026.03.30 @ 07:39:39 Sessions 1 Manual Loads 0 Difficulty Rogue Special Mode None Game No. 7 Rogue 7 Adventurer 0 Explorer 0 Win Type - Total 0 Types 0/0/0/0/0/0/0/0/0/0 Lore% 2 Gallery% 4 Achievement% 5 Wizard Run 0 Options --------- Layout 1 ASCII 0 Keyboard 0 Movement Mouse Keybinds 0 Fullscreen 1 Font 32/SmallcapsGlow Map View 77x35 Zoom Use 0% Tactical HUD 1 Map Filters NONE Filters NONE Steam 1 RUN: 3a03120b-863e-43b9-b88f-601e32cce663